lending/lending_fUSD_20250808
["ID","MTS","AMOUNT","RATE_DAILY","PERIOD"]
[377983224,1754647843563,-252.63498976,0.00018769,2]
[377983225,1754647843572,-819.61,0.00018769,2]
[377983226,1754647843582,-400.0,0.00018769,2]
[377983227,1754647843591,-400.0,0.00018769,2]
[377983228,1754647843600,-400.0,0.00018769,2]
[377983229,1754647843610,-480.28,0.00018769,2]
[377983230,1754647843619,-707.16,0.00018769,2]
[377983231,1754647843628,-473.4,0.00018769,2]
[377983232,1754647843637,-400.0,0.00018769,2]
[377983233,1754647843646,-400.0,0.00018769,2]
[377983234,1754647843655,-1038.36,0.00018769,2]
[377983235,1754647843664,-1086.55,0.00018769,2]
[377983236,1754647843673,-400.0,0.00018769,2]
[377983237,1754647843683,-401.69,0.00018769,2]
[377983238,1754647843692,-1192.11,0.00018769,2]
[377983239,1754647843702,-634.9,0.00018769,2]
[377983240,1754647843711,-1156.31,0.00018769,2]
[377983241,1754647843720,-1171.16,0.00018769,2]
[377983242,1754647843729,-400.0,0.00018769,2]
[377983243,1754647843739,-400.0,0.00018769,2]
[377983244,1754647843749,-400.0,0.00018769,2]
[377983245,1754647843758,-400.0,0.00018769,2]
[377983246,1754647843767,-840.12,0.00018769,2]
[377983247,1754647843777,-828.97,0.00018769,2]
[377983248,1754647843786,-400.0,0.00018769,2]
[377983249,1754647843795,-2068.59,0.00018769,2]
[377983250,1754647843804,-406.91323405,0.00018769,2]
[377983251,1754647843813,-400.0,0.00018769,2]
[377983252,1754647843823,-986.25,0.00018769,2]
[377983253,1754647843832,-671.86,0.00018769,2]
[377983254,1754647843841,-404.90773294,0.00018769,2]
[377983255,1754647843850,-828.21,0.00018769,2]
[377983256,1754647843859,-400.0,0.00018769,2]
[377983257,1754647843869,-400.0,0.00018769,2]
[377983258,1754647843878,-713.18,0.00018769,2]
[377983259,1754647843888,-483.56,0.00018769,2]
[377983260,1754647843897,-400.0,0.00018769,2]
[377983261,1754647843907,-400.0,0.00018769,2]
[377983262,1754647843917,-652.84,0.00018769,2]
[377983263,1754647843929,-400.0,0.00018769,2]
[377983264,1754647843940,-400.0,0.00018769,2]
[377983265,1754647843949,-608.97,0.00018769,2]
[377983266,1754647843959,-400.0,0.00018769,2]
[377983267,1754647843969,-872.45,0.00018769,2]
[377983268,1754647843979,-400.0,0.00018769,2]
[377983269,1754647843989,-812.3,0.00018769,2]
[377983270,1754647843998,-743.76,0.00018769,2]
[377983271,1754647844007,-400.0,0.00018769,2]
[377983272,1754647844017,-587.14,0.00018769,2]
[377983273,1754647844026,-400.0,0.00018769,2]
[377983274,1754647844035,-400.0,0.00018769,2]
[377983275,1754647844045,-400.0,0.00018769,2]
[377983276,1754647844055,-567.5,0.00018769,2]
[377983277,1754647844065,-400.0,0.00018769,2]
[377983278,1754647844074,-400.0,0.00018769,2]
[377983279,1754647844084,-706.05,0.00018769,2]
[377983280,1754647844094,-1212.83,0.00018769,2]
[377983281,1754647844103,-883.65,0.00018769,2]
[377983282,1754647844113,-713.2,0.00018769,2]
[377983283,1754647844122,-566.29,0.00018769,2]
[377983284,1754647844130,-400.0,0.00018769,2]
[377983285,1754647844139,-405.72749016,0.00018769,2]
[377983286,1754647844150,-556.64,0.00018769,2]
[377983287,1754647844160,-821.37,0.00018769,2]
[377983288,1754647844169,-649.28,0.00018769,2]
[377983289,1754647844179,-547.28,0.00018769,2]
[377983290,1754647844188,-412.14512179,0.00018769,2]
[377983291,1754647844198,-400.0,0.00018769,2]
[377983292,1754647844208,-400.0,0.00018769,2]
[377983293,1754647844218,-400.0,0.00018769,2]
[377983294,1754647844231,-400.0,0.00018769,2]
[377983295,1754647844242,-400.0,0.00018769,2]
[377983296,1754647844251,-402.94861465,0.00018769,2]
[377983297,1754647844260,-340.0,0.00018769,2]
[377983298,1754647844270,-400.0,0.00018769,2]
[377983299,1754647844280,-400.0,0.00018769,2]
[377983300,1754647844290,-1079.28,0.00018769,2]
[377983301,1754647844299,-400.0,0.00018769,2]
[377983302,1754647844310,-400.0,0.00018769,2]
[377983303,1754647844320,-1263.13,0.00018769,2]
[377983304,1754647844330,-1366.14,0.00018769,2]
[377983305,1754647844339,-400.0,0.00018769,2]
[377983306,1754647844349,-583.0,0.00018769,2]
[377983307,1754647844358,-400.0,0.00018769,2]
[377983308,1754647844368,-856.71,0.00018769,2]
[377983309,1754647844378,-593.57,0.00018769,2]
[377983310,1754647844388,-400.0,0.00018769,2]
[377983311,1754647844398,-400.0,0.00018769,2]
[377983312,1754647844409,-400.0,0.00018769,2]
[377983313,1754647844418,-853.11,0.00018769,2]
[377983314,1754647844427,-400.0,0.00018769,2]
[377983315,1754647844436,-1000.0,0.00018769,2]
[377983316,1754647844446,-877.68,0.00018769,2]
[377983317,1754647844455,-823.99,0.00018769,2]
[377983318,1754647844465,-413.76,0.00018769,2]
[377983319,1754647844474,-400.0,0.00018769,2]
[377983320,1754647844483,-400.0,0.00018769,2]
[377983321,1754647844492,-1464.09,0.00018769,2]
[377983322,1754647844501,-400.0,0.00018769,2]
[377983323,1754647844510,-429.49,0.00018769,2]
[377983324,1754647844520,-400.0,0.00018769,2]
[377983325,1754647844529,-400.0,0.00018769,2]
[377983326,1754647844538,-677.64,0.00018769,2]
[377983327,1754647844547,-400.0,0.00018769,2]
[377983328,1754647844556,-409.16596988,0.00018769,2]
[377983329,1754647844565,-787.85,0.00018769,2]
[377983330,1754647844574,-557.21,0.00018769,2]
[377983331,1754647844584,-667.32,0.00018769,2]
[377983332,1754647844593,-783.61,0.00018769,2]
[377983333,1754647844602,-993.53,0.00018769,2]
[377983334,1754647844611,-400.0,0.00018769,2]
[377983335,1754647844620,-678.65,0.00018769,2]
[377983336,1754647844629,-1152.78,0.00018769,2]
[377983337,1754647844639,-400.0,0.00018769,2]
[377983338,1754647844649,-400.0,0.00018769,2]
[377983339,1754647844658,-400.0,0.00018769,2]
[377983340,1754647844668,-400.0,0.00018769,2]
[377983341,1754647844677,-400.0,0.00018769,2]
[377983342,1754647844687,-621.12,0.00018769,2]
[377983343,1754647844696,-1286.1,0.00018769,2]
[377983344,1754647844704,-400.0,0.00018769,2]
[377983345,1754647844713,-400.0,0.00018769,2]
[377983346,1754647844723,-498.6,0.00018769,2]
[377983347,1754647844732,-400.0,0.00018769,2]
[377983348,1754647844744,-400.0,0.00018769,2]
[377983349,1754647844754,-400.0,0.00018769,2]
[377983350,1754647844763,-440.14,0.00018769,2]
[377983351,1754647844772,-1366.85,0.00018769,2]
[377983352,1754647844782,-951.49,0.00018769,2]
[377983353,1754647844792,-400.0,0.00018769,2]
[377983354,1754647844802,-400.0,0.00018769,2]
[377983355,1754647844811,-632.88,0.00018769,2]
[377983356,1754647844821,-400.0,0.00018769,2]
[377983357,1754647844832,-400.0,0.00018769,2]
[377983358,1754647844842,-400.85845812,0.00018769,2]
[377983359,1754647844852,-400.0,0.00018769,2]
[377983360,1754647844861,-732.33,0.00018769,2]
[377983361,1754647844871,-718.98,0.00018769,2]
[377983362,1754647844880,-400.0,0.00018769,2]
[377983363,1754647844889,-400.0,0.00018769,2]
[377983364,1754647844898,-400.0,0.00018769,2]
[377983365,1754647844908,-496.68,0.00018769,2]
[377983366,1754647844917,-500.0,0.00018769,2]
[377983367,1754647844927,-400.0,0.00018769,2]
[377983368,1754647844936,-903.45,0.00018769,2]
[377983369,1754647844946,-723.42,0.00018769,2]
[377983370,1754647844956,-400.0,0.00018769,2]
[377983371,1754647844965,-400.0,0.00018769,2]
[377983372,1754647844974,-446.31,0.00018769,2]
[377983373,1754647844983,-487.38,0.00018769,2]
[377983374,1754647844992,-460.62,0.00018769,2]
[377983375,1754647845001,-408.30637338,0.00018769,2]
[377983376,1754647845011,-695.21,0.00018769,2]
[377983377,1754647845020,-400.0,0.00018769,2]
[377983378,1754647845029,-575.03,0.00018769,2]
[377983379,1754647845038,-400.0,0.00018769,2]
[377983380,1754647845047,-484.07,0.00018769,2]
[377983381,1754647845057,-402.29834311,0.00018769,2]
[377983382,1754647845067,-1102.7,0.00018769,2]
[377983383,1754647845076,-769.45,0.00018769,2]
[377983384,1754647845086,-400.0,0.00018769,2]
[377983385,1754647845095,-400.0,0.00018769,2]
[377983386,1754647845103,-400.0,0.00018769,2]
[377983387,1754647845113,-1607.11,0.00018769,2]
[377983388,1754647845122,-1394.54,0.00018769,2]
[377983389,1754647845131,-954.89,0.00018769,2]
[377983390,1754647845140,-1605.14,0.00018769,2]
[377983391,1754647845152,-456.57,0.00018769,2]
[377983392,1754647845162,-697.21,0.00018769,2]
[377983393,1754647845172,-400.0,0.00018769,2]
[377983394,1754647845182,-400.0,0.00018769,2]
[377983395,1754647845191,-400.0,0.00018769,2]
[377983396,1754647845201,-891.91,0.00018769,2]
[377983397,1754647845210,-838.55,0.00018769,2]
[377983398,1754647845219,-400.0,0.00018769,2]
[377983399,1754647845229,-689.84,0.00018769,2]
[377983400,1754647845239,-400.0,0.00018769,2]
[377983401,1754647845249,-400.0,0.00018769,2]
[377983402,1754647845258,-462.35,0.00018769,2]
[377983403,1754647845268,-400.0,0.00018769,2]
[377983404,1754647845278,-400.0,0.00018769,2]
[377983405,1754647845288,-400.0,0.00018769,2]
[377983406,1754647845299,-415.61161628,0.00018769,2]
[377983407,1754647845309,-400.0,0.00018769,2]
[377983408,1754647845320,-400.0,0.00018769,2]
[377983409,1754647845330,-400.0,0.00018769,2]
[377983410,1754647845340,-400.0,0.00018769,2]
[377983411,1754647845349,-400.0,0.00018769,2]
[377983412,1754647845358,-828.25,0.00018769,2]
[377983413,1754647845367,-403.84428208,0.00018769,2]
[377983414,1754647845377,-490.57,0.00018769,2]
[377983415,1754647845386,-400.0,0.00018769,2]
[377983416,1754647845396,-405.188689,0.00018769,2]
[377983417,1754647845405,-1114.87,0.00018769,2]
[377983418,1754647845415,-718.95,0.00018769,2]
[377983419,1754647845424,-400.0,0.00018769,2]
[377983420,1754647845434,-413.73693699,0.00018769,2]
[377983421,1754647845443,-616.84,0.00018769,2]
[377983422,1754647845453,-400.0,0.00018769,2]
[377983423,1754647845462,-400.0,0.00018769,2]
[377983424,1754647845472,-1073.67,0.00018769,2]
[377983425,1754647845482,-400.0,0.00018769,2]
[377983426,1754647845491,-407.39907371,0.00018769,2]
[377983427,1754647845723,-1202.58,0.00018769,2]
[377983428,1754647845734,-400.0,0.00018769,2]
[377983429,1754647845744,-400.0,0.00018769,2]
[377983430,1754647845755,-400.0,0.00018769,2]
[377983431,1754647845764,-682.0,0.00018769,2]
[377983432,1754647845774,-400.0,0.00018769,2]
[377983433,1754647845784,-400.0,0.00018769,2]
[377983434,1754647845794,-400.0,0.00018769,2]
[377983435,1754647845803,-770.85,0.00018769,2]
[377983436,1754647845813,-480.36,0.00018769,2]
[377983437,1754647845822,-400.0,0.00018769,2]
[377983438,1754647845831,-1138.43,0.00018769,2]
[377983439,1754647845841,-895.79,0.00018769,2]
[377983440,1754647845850,-1982.15,0.00018769,2]
[377983441,1754647845859,-780.0,0.00018769,2]
[377983442,1754647845869,-400.0,0.00018769,2]
[377983443,1754647845878,-557.2,0.00018769,2]
[377983444,1754647845887,-413.33,0.00018769,2]
[377983445,1754647845897,-715.93,0.00018769,2]
[377983446,1754647845906,-400.0,0.00018769,2]
[377983447,1754647845916,-407.83,0.00018769,2]
[377983448,1754647845926,-400.0,0.00018769,2]
[377983449,1754647845935,-463.61,0.00018769,2]
[377983450,1754647845944,-425.81,0.00018769,2]
[377983451,1754647845953,-400.0,0.00018769,2]
[377983452,1754647845963,-590.53,0.00018769,2]
[377983453,1754647845973,-400.0,0.00018769,2]
[377983454,1754647845982,-1067.4,0.00018769,2]
[377983455,1754647845992,-990.72,0.00018769,2]
[377983456,1754647846001,-400.0,0.00018769,2]
[377983457,1754647846011,-400.0,0.00018769,2]
[377983458,1754647846020,-400.0,0.00018769,2]
[377983459,1754647846029,-400.0,0.00018769,2]
[377983460,1754647846038,-649.19,0.00018769,2]
[377983461,1754647846048,-545.48,0.00018769,2]
[377983462,1754647846057,-447.31,0.00018769,2]
[377983463,1754647846066,-400.0,0.00018769,2]
[377983464,1754647846076,-400.0,0.00018769,2]
[377983465,1754647846085,-400.0,0.00018769,2]
[377983466,1754647846094,-400.0,0.00018769,2]
[377983467,1754647846103,-400.0,0.00018769,2]
[377983468,1754647846113,-1007.37,0.00018769,2]
[377983469,1754647846122,-961.04,0.00018769,2]
[377983470,1754647846131,-400.0,0.00018769,2]
[377983471,1754647846141,-400.0,0.00018769,2]
[377983472,1754647846152,-716.27,0.00018769,2]
[377983473,1754647846161,-400.0,0.00018769,2]
[377983474,1754647846171,-420.32,0.00018769,2]
[377983475,1754647846180,-646.77,0.00018769,2]
[377983476,1754647846191,-400.0,0.00018769,2]
[377983477,1754647846202,-842.65,0.00018769,2]
[377983478,1754647846212,-688.68,0.00018769,2]
[377983479,1754647846222,-400.0,0.00018769,2]
[377983481,1754647846233,-400.0,0.00018769,2]
[377983483,1754647846244,-556.19,0.00018769,2]
[377983484,1754647846253,-1612.37,0.00018769,2]
[377983485,1754647846262,-400.0,0.00018769,2]
[377983486,1754647846273,-400.0,0.00018769,2]
[377983487,1754647846283,-745.11,0.00018769,2]
[377983488,1754647846293,-400.0,0.00018769,2]
[377983489,1754647846303,-400.0,0.00018769,2]
[377983490,1754647846314,-554.8,0.00018769,2]
[377983491,1754647846325,-400.0,0.00018769,2]
[377983492,1754647846336,-1046.08,0.00018769,2]
[377983493,1754647846345,-511.17,0.00018769,2]
[377983494,1754647846356,-400.0,0.00018769,2]
[377983495,1754647846367,-400.0,0.00018769,2]
[377983496,1754647846376,-696.74,0.00018769,2]
[377983497,1754647846386,-466.77908852,0.00018769,2]
[377983498,1754647846397,-980.75,0.00018769,2]
[377983499,1754647846408,-400.0,0.00018769,2]
[377983500,1754647846418,-400.0,0.00018769,2]
[377983501,1754647846428,-400.0,0.00018769,2]
[377983502,1754647846440,-1461.83,0.00018769,2]
[377983503,1754647846451,-862.11,0.00018769,2]
[377983504,1754647846460,-400.0,0.00018769,2]
[377983505,1754647846470,-1037.56,0.00018769,2]
[377983506,1754647846480,-982.77,0.00018769,2]
[377983507,1754647846490,-717.36,0.00018769,2]
[377983508,1754647846499,-400.0,0.00018769,2]
[377983509,1754647846510,-400.0,0.00018769,2]
[377983510,1754647846519,-400.0,0.00018769,2]
[377983511,1754647846530,-495.17,0.00018769,2]
[377983512,1754647846540,-400.0,0.00018769,2]
[377983513,1754647846550,-878.44,0.00018769,2]
[377983514,1754647846561,-400.0,0.00018769,2]
[377983515,1754647846572,-400.0,0.00018769,2]
[377983516,1754647846582,-850.01,0.00018769,2]
[377983517,1754647846592,-400.0,0.00018769,2]
[377983518,1754647846601,-743.83,0.00018769,2]
[377983519,1754647846611,-977.85,0.00018769,2]
[377983520,1754647846620,-400.0,0.00018769,2]
[377983521,1754647846630,-426.3,0.00018769,2]
[377983522,1754647846639,-622.43,0.00018769,2]
[377983523,1754647846649,-400.0,0.00018769,2]
[377983524,1754647846658,-400.0,0.00018769,2]
[377983525,1754647846668,-822.27,0.00018769,2]
[377983526,1754647846677,-697.19,0.00018769,2]
[377983527,1754647846687,-400.0,0.00018769,2]
[377983528,1754647846696,-400.0,0.00018769,2]
[377983529,1754647846706,-400.0,0.00018769,2]
[377983530,1754647846715,-400.0,0.00018769,2]
[377983531,1754647846724,-1482.06,0.00018769,2]
[377983532,1754647846733,-400.0,0.00018769,2]
[377983533,1754647846743,-667.58,0.00018769,2]
[377983534,1754647846752,-400.0,0.00018769,2]
[377983536,1754647846762,-400.0,0.00018769,2]
[377983538,1754647846771,-400.0,0.00018769,2]
[377983539,1754647846780,-400.0,0.00018769,2]
[377983540,1754647846790,-400.0,0.00018769,2]
[377983541,1754647846801,-400.0,0.00018769,2]
[377983542,1754647846811,-529.52,0.00018769,2]
[377983543,1754647846820,-400.0,0.00018769,2]
[377983544,1754647846830,-400.0,0.00018769,2]
[377983545,1754647846839,-1468.81,0.00018769,2]
[377983546,1754647846849,-401.1128897,0.00018769,2]
[377983547,1754647846858,-400.0,0.00018769,2]
[377983548,1754647846868,-514.58764096,0.00018769,2]
[377983549,1754647846878,-1694.34,0.00018769,2]
[377983550,1754647846889,-400.0,0.00018769,2]
[377983551,1754647846900,-400.0,0.00018769,2]
[377983552,1754647846911,-400.0,0.00018769,2]
[377983553,1754647846920,-571.44,0.00018769,2]
[377983554,1754647846930,-400.0,0.00018769,2]
[377983555,1754647846940,-400.0,0.00018769,2]
[377983556,1754647846951,-463.63,0.00018769,2]
[377983557,1754647846961,-400.0,0.00018769,2]
[377983558,1754647846971,-400.0,0.00018769,2]
[377983559,1754647846981,-949.25,0.00018769,2]
[377983560,1754647846991,-437.43,0.00018769,2]
[377983561,1754647847000,-400.0,0.00018769,2]
[377983562,1754647847011,-1246.02,0.00018769,2]
[377983563,1754647847020,-400.0,0.00018769,2]
[377983564,1754647847031,-502.73,0.00018769,2]
[377983565,1754647847040,-400.0,0.00018769,2]
[377983566,1754647847050,-400.0,0.00018769,2]
[377983567,1754647847059,-863.38,0.00018769,2]
[377983568,1754647847069,-628.06,0.00018769,2]
[377983569,1754647847079,-400.0,0.00018769,2]
[377983570,1754647847088,-762.71,0.00018769,2]
[377983571,1754647847098,-400.0,0.00018769,2]
[377983572,1754647847107,-741.49,0.00018769,2]
[377983573,1754647847116,-400.0,0.00018769,2]
[377983574,1754647847126,-400.0,0.00018769,2]
[377983575,1754647847135,-400.0,0.00018769,2]
[377983576,1754647847144,-400.0,0.00018769,2]
[377983577,1754647847157,-672.22,0.00018769,2]
[377983578,1754647847167,-694.44,0.00018769,2]
[377983579,1754647847176,-783.6,0.00018769,2]
[377983580,1754647847186,-400.0,0.00018769,2]
[377983581,1754647847195,-400.0,0.00018769,2]
[377983582,1754647847205,-400.0,0.00018769,2]
[377983583,1754647847219,-400.0,0.00018769,2]
[377983584,1754647847230,-2392.32,0.00018769,2]
[377983585,1754647847240,-454.5,0.00018769,2]
[377983586,1754647847250,-1358.53,0.00018769,2]
[377983587,1754647847259,-436.96,0.00018769,2]
[377983588,1754647847268,-400.0,0.00018769,2]
[377983589,1754647847278,-993.56,0.00018769,2]
[377983590,1754647847287,-400.0,0.00018769,2]
[377983591,1754647847296,-400.0,0.00018769,2]
[377983592,1754647847306,-400.0,0.00018769,2]
[377983593,1754647847315,-731.02,0.00018769,2]
[377983594,1754647847325,-504.79,0.00018769,2]
[377983595,1754647847334,-738.67,0.00018769,2]
[377983596,1754647847343,-1714.61,0.00018769,2]
[377983597,1754647847352,-400.0,0.00018769,2]
[377983598,1754647847362,-400.0,0.00018769,2]
[377983599,1754647847371,-400.0,0.00018769,2]
[377983600,1754647847381,-1003.06,0.00018769,2]
[377983601,1754647847392,-1279.25,0.00018769,2]
[377983602,1754647847401,-400.0,0.00018769,2]
[377983603,1754647847411,-865.64,0.00018769,2]
[377983604,1754647847421,-1470.62,0.00018769,2]
[377983605,1754647847431,-787.92,0.00018769,2]
[377983606,1754647847440,-779.29,0.00018769,2]
[377983607,1754647847449,-400.0,0.00018769,2]
[377983608,1754647847458,-400.0,0.00018769,2]
[377983609,1754647847468,-400.0,0.00018769,2]
[377983610,1754647847478,-1051.48,0.00018769,2]
[377983611,1754647847487,-400.0,0.00018769,2]
[377983612,1754647847497,-1117.65,0.00018769,2]
[377983613,1754647847506,-400.0,0.00018769,2]
[377983614,1754647847516,-821.07,0.00018769,2]
[377983615,1754647847525,-400.0,0.00018769,2]
[377983616,1754647847534,-400.0,0.00018769,2]
[377983617,1754647847544,-400.0,0.00018769,2]
[377983618,1754647847554,-1430.01,0.00018769,2]
[377983619,1754647847563,-910.16,0.00018769,2]
[377983620,1754647847573,-400.0,0.00018769,2]
[377983621,1754647847584,-400.0,0.00018769,2]
[377983622,1754647847594,-400.0,0.00018769,2]
[377983623,1754647847605,-612.38,0.00018769,2]
[377983624,1754647847615,-400.0,0.00018769,2]
[377983625,1754647847624,-400.0,0.00018769,2]
[377983626,1754647847634,-503.8,0.00018769,2]
[377983627,1754647847643,-1591.98,0.00018769,2]
[377983628,1754647847653,-1066.04,0.00018769,2]
[377983629,1754647847662,-1258.92,0.00018769,2]
[377983630,1754647847671,-400.0,0.00018769,2]
[377983631,1754647847681,-400.0,0.00018769,2]
[377983632,1754647847690,-400.0,0.00018769,2]
[377983633,1754647847700,-500.0,0.00018769,2]
[377983634,1754647847710,-826.16,0.00018769,2]
[377983635,1754647847721,-400.0,0.00018769,2]
[377983636,1754647847730,-422.92,0.00018769,2]
[377983637,1754647847740,-435.68,0.00018769,2]
[377983638,1754647847750,-937.64,0.00018769,2]
[377983639,1754647847759,-400.0,0.00018769,2]
[377983640,1754647847770,-300.0,0.00018769,2]
[377983641,1754647847780,-1915.12,0.00018769,2]
[377983642,1754647847789,-518.89,0.00018769,2]
[377983643,1754647847799,-1088.36,0.00018769,2]
[377983644,1754647847808,-1294.1,0.00018769,2]
[377983645,1754647847818,-687.9,0.00018769,2]
[377983646,1754647847828,-400.0,0.00018769,2]
[377983647,1754647847837,-1642.54,0.00018769,2]
[377983648,1754647847847,-13149.73,0.00018769,2]
[377983649,1754647847856,-400.0,0.00018769,2]
[377983650,1754647847865,-400.0,0.00018769,2]
[377983651,1754647847874,-1354.15,0.00018769,2]
[377983652,1754647847883,-243.32820685,0.00018769,2]
[377983653,1754647847893,-731.39,0.00018769,2]
[377983654,1754647847903,-1537.87,0.00018769,2]
[377983655,1754647847912,-400.0,0.00018769,2]
[377983656,1754647847922,-400.0,0.00018769,2]
[377983657,1754647847932,-400.0,0.00018769,2]
[377983658,1754647847942,-400.0,0.00018769,2]
[377983659,1754647847951,-400.0,0.00018769,2]
[377983660,1754647847962,-1092.4,0.00018769,2]
[377983661,1754647847973,-400.0,0.00018769,2]
[377983662,1754647847985,-400.0,0.00018769,2]
[377983663,1754647847995,-400.0,0.00018769,2]
[377983664,1754647848005,-740.84,0.00018769,2]
[377983665,1754647848015,-872.46,0.00018769,2]
[377983666,1754647848024,-407.2454707,0.00018769,2]
[377983667,1754647848034,-1184.33,0.00018769,2]
[377983668,1754647848043,-400.0,0.0001877,2]
[377983669,1754647848053,-400.0,0.0001877,2]
[377983670,1754647848063,-400.0,0.0001877,2]
[377983671,1754647848072,-400.0,0.0001877,2]
[377983672,1754647848082,-400.0,0.0001877,2]
[377983673,1754647848177,-400.0,0.0001877,2]
[377983674,1754647848187,-563.85,0.0001877,2]
[377983675,1754647848198,-400.0,0.0001877,2]
[377983676,1754647848207,-400.0,0.0001877,2]
[377983677,1754647848217,-456.3,0.0001877,2]
[377983678,1754647848226,-400.0,0.0001877,2]
[377983679,1754647848236,-400.0,0.0001877,2]
[377983680,1754647848246,-400.0,0.0001877,2]
[377983681,1754647848256,-400.0,0.0001877,2]
[377983682,1754647848265,-400.0,0.0001877,2]
[377983683,1754647848275,-634.78,0.0001877,2]
[377983684,1754647848285,-400.0,0.0001877,2]
[377983685,1754647848295,-497.9,0.0001877,2]
[377983686,1754647848305,-400.0,0.0001877,2]
[377983687,1754647848313,-175.09062749,0.0001877,2]
[377983688,1754647848323,-400.0,0.0001877,2]
[377983689,1754647848333,-605.51,0.0001877,2]
[377983690,1754647848343,-400.0,0.0001877,2]
[377983691,1754647848353,-400.0,0.0001877,2]
[377983692,1754647848362,-453.8,0.0001877,2]
[377983693,1754647848372,-453.28,0.0001877,2]
[377983694,1754647848381,-1536.8,0.0001877,2]
[377983695,1754647848391,-400.0,0.0001877,2]
[377983696,1754647848400,-1289.61,0.0001877,2]
[377983697,1754647848409,-852.69,0.0001877,2]
[377983698,1754647848419,-1715.72,0.0001877,2]
[377983700,1754647848428,-923.93,0.0001877,2]
[377983701,1754647848438,-625.25,0.0001877,2]
[377983702,1754647848448,-946.38,0.0001877,2]
[377983703,1754647848458,-400.0,0.0001877,2]
[377983704,1754647848467,-1059.71,0.0001877,2]
[377983705,1754647848477,-1241.95,0.0001877,2]
[377983706,1754647848486,-1733.22,0.0001877,2]
[377983707,1754647848496,-684.8,0.0001877,2]
[377983708,1754647848505,-1377.68,0.0001877,2]
[377983709,1754647848514,-1349.69,0.0001877,2]
[377983710,1754647848523,-1264.68,0.0001877,2]
[377983711,1754647848533,-1290.43,0.0001877,2]
[377983712,1754647848542,-780.14,0.0001877,2]
[377983713,1754647848552,-1125.95,0.0001877,2]
[377983714,1754647848562,-1070.49,0.0001877,2]
[377983715,1754647848572,-1150.54,0.0001877,2]
[377983716,1754647848582,-602.4,0.0001877,2]
[377983717,1754647848591,-1196.77,0.0001877,2]
[377983718,1754647848600,-400.0,0.0001877,2]
[377983719,1754647848610,-856.85,0.0001877,2]
[377983720,1754647848620,-1006.46,0.0001877,2]
[377983721,1754647848629,-822.46,0.0001877,2]
[377983722,1754647848638,-800.12,0.0001877,2]
[377983723,1754647848648,-975.99,0.0001877,2]
[377983724,1754647848658,-1477.04,0.0001877,2]
[377983725,1754647848667,-1404.52,0.0001877,2]
[377983726,1754647848677,-3492.58,0.0001877,2]
[377983727,1754647848686,-880.98,0.0001877,2]
[377983728,1754647848699,-500.0,0.0001877,2]